bitfinex/quotes_SOLUSD_20260119
["timestamp","ask_amount","ask_price","bid_price","bid_amount"]
[1768787882056,4.3717501,133.74,133.69,3.00807425]
[1768787882458,4.3717501,133.74,133.67,26.18379742]
[1768787882658,4.3717501,133.74,133.69,3.00807425]
[1768787883171,4.3717501,133.75,133.7,3.00807425]
[1768787883558,4.3717501,133.75,133.67,63.5893484]
[1768787883776,4.3717501,133.75,133.71,7.47887218]
[1768787884780,7.37982435,133.75,133.71,7.47887218]
[1768787885081,4.3717501,133.74,133.71,7.47887218]
[1768787885460,7.37982435,133.74,133.7,11.70930759]
[1768787885964,4.3717501,133.74,133.7,11.70930759]
[1768787887360,16.38,133.76,133.72,4.23004081]
[1768787887582,20.7517501,133.76,133.72,4.23004081]
[1768787888165,4.3717501,133.75,133.71,4.23004081]
[1768787888884,4.3717501,133.74,133.7,11.70930759]
[1768787889258,7.37982435,133.75,133.71,4.23004081]
[1768787890479,7.37982435,133.74,133.7,11.70930759]
[1768787890777,4.3717501,133.73,133.7,7.47926678]
[1768787891882,4.3717501,133.73,133.69,11.70988716]
[1768787893261,4.3717501,133.73,133.69,7.47984635]
[1768787893987,4.3717501,133.73,133.68,11.71040134]
[1768787893988,4.3717501,133.72,133.68,11.71040134]
[1768787894370,4.3717501,133.72,133.66,4.23004081]
[1768787894598,7.37982435,133.68,133.65,7.48199322]
[1768787894896,4.3717501,133.68,133.65,7.48199322]
[1768787895460,6.91205771,133.69,133.65,11.71203403]
[1768787895690,4.3717501,133.69,133.65,11.71203403]
[1768787896001,4.3717501,133.68,133.64,11.71265702]
[1768787896162,6.91205771,133.69,133.65,4.23004081]
[1768787896361,4.3717501,133.7,133.65,4.23004081]
[1768787896676,4.3717501,133.7,133.66,4.23004081]
[1768787897260,11.85121626,133.7,133.66,4.23004081]
[1768787897673,18.76327397,133.7,133.66,4.23004081]
[1768787898569,18.76327397,133.7,133.66,11.71167684]
[1768787898774,4.3717501,133.69,133.66,11.71167684]
[1768787899187,4.3717501,133.68,133.64,11.71228613]
[1768787899778,4.3717501,133.68,133.65,7.48221333]
[1768787900128,4.3717501,133.68,133.58,4.43004081]
[1768787900129,6.91205771,133.66,133.58,4.43004081]
[1768787900266,6.91205771,133.61,133.58,4.43004081]
[1768787900467,6.91205771,133.62,133.58,4.43004081]
[1768787901186,6.91205771,133.61,133.58,4.43004081]
[1768787901885,4.3717501,133.58,133.55,0.2]
[1768787902181,11.28380781,133.57,133.55,0.2]
[1768787903965,4.3717501,133.57,133.55,0.2]
[1768787904168,4.26173193,133.57,133.55,0.2]
[1768787904569,4.15171615,133.57,133.55,0.2]
[1768787910999,11.3528452,133.59,133.55,12.01924453]
[1768787911215,4.44078749,133.59,133.55,12.01924453]
[1768787912106,27.7328452,133.6,133.56,4.33155932]
[1768787912319,11.92359118,133.64,133.56,4.33155932]
[1768787912484,4.44078749,133.63,133.59,4.33155932]
[1768787913104,4.44078749,133.63,133.59,11.81707777]
[1768787915708,6.91205771,133.66,133.6,4.33155932]
[1768787915896,6.91205771,133.65,133.59,4.33155932]
[1768787916982,6.91205771,133.64,133.59,11.81688291]
[1768787917186,6.91205771,133.63,133.59,11.81688291]
[1768787918015,6.91205771,133.62,133.58,11.70185025]
[1768787919011,2.51031473,133.62,133.58,11.70185025]
[1768787919320,2.45031474,133.62,133.58,11.70185025]
[1768787920318,23.31205771,133.65,133.59,4.21584455]
[1768787920509,30.79448666,133.65,133.59,4.21584455]
[1768787920815,103.1,133.67,133.61,4.21584455]
[1768787921112,110.01368087,133.67,133.61,4.21584455]
[1768787921303,112.46459561,133.67,133.61,4.21584455]
[1768787921621,113.03222947,133.67,133.62,4.21584455]
[1768787921909,119.94591034,133.67,133.62,4.21584455]
[1768787922289,2.45091474,133.66,133.62,11.69965762]
[1768787926614,2.39091474,133.66,133.62,11.69965762]
[1768787927511,110.58131473,133.67,133.63,4.21584455]
[1768787928319,103.1,133.67,133.63,4.21584455]
[1768787928897,103.1,133.67,133.64,4.21584455]
[1768787929206,9.87170779,133.69,133.64,4.21584455]
[1768787930302,9.87170779,133.69,133.64,11.69833854]
[1768787930516,2.39151474,133.68,133.64,11.69833854]
[1768787930920,9.30519561,133.68,133.64,11.69833854]
[1768787931423,9.30519561,133.68,133.64,4.21584455]
[1768787932299,2.39151474,133.66,133.62,4.21584455]
[1768787932497,9.30519561,133.66,133.62,4.21584455]
[1768787932698,9.87225844,133.68,133.62,4.21584455]
[1768787932904,16.78593931,133.68,133.62,4.21584455]
[1768787933101,2.39151474,133.66,133.62,4.21584455]
[1768787934219,16.78670403,133.67,133.62,11.69971979]
[1768787934420,2.39151474,133.67,133.63,4.15215886]
[1768787934627,26.25229535,133.68,133.63,4.15215886]
[1768787934813,119.88534061,133.69,133.63,4.15215886]
[1768787935901,119.88534061,133.69,133.64,11.63494844]
[1768787936521,112.97165974,133.69,133.64,11.63494844]
[1768787936715,112.97165974,133.69,133.65,4.15215886]
[1768787939714,112.97165974,133.69,133.65,11.63428086]
[1768787943032,2.39151474,133.68,133.65,11.63428086]
[1768787943423,103.1,133.69,133.66,4.15215886]
[1768787944436,9.86991161,133.72,133.66,4.15215886]
[1768787944822,9.86991161,133.72,133.67,11.63326905]
[1768787945339,12.88045874,133.72,133.67,11.63326905]
[1768787946513,2.39151474,133.7,133.67,4.15215886]
[1768787947217,2.39151474,133.7,133.67,11.63320354]
[1768787947634,2.39151474,133.7,133.63,18.70771361]
[1768787947818,5.40206187,133.69,133.64,4.15215886]
[1768787948535,5.40206187,133.69,133.65,11.63432109]
[1768787948839,2.39151474,133.68,133.64,11.63478696]
[1768787951143,9.87219233,133.68,133.64,11.63478696]
[1768787956552,12.88273946,133.68,133.64,11.63478696]
[1768787956934,5.40206187,133.68,133.64,11.63478696]
[1768787957132,5.40206187,133.68,133.63,7.48314286]
[1768787957133,5.40206187,133.66,133.63,7.48314286]
[1768787957440,5.40206187,133.67,133.63,11.63530172]
[1768787958763,2.39151474,133.67,133.64,4.15215886]
[1768787958932,5.40206187,133.67,133.64,4.15215886]
[1768787960057,5.40206187,133.67,133.63,7.48314286]
[1768787960058,12.88326117,133.67,133.63,4.15215886]
[1768787960362,9.87271404,133.67,133.63,4.15215886]
[1768787960861,12.88326117,133.67,133.63,4.15215886]
[1768787961238,4.16393526,133.77,133.67,4.15215886]
[1768787961553,4.16393526,133.75,133.7,4.15215886]
[1768787961936,4.16393526,133.74,133.7,4.15215886]
[1768787963535,11.64113015,133.74,133.7,4.15215886]
[1768787964037,4.46464943,133.73,133.69,11.82135681]
[1768787965047,4.46464943,133.73,133.69,4.34183013]
[1768787966645,4.46464943,133.73,133.66,4.34183013]
[1768787966646,4.46464943,133.7,133.66,4.34183013]
[1768787967362,4.46464943,133.7,133.66,11.82310832]
[1768787968434,4.46464943,133.7,133.67,7.48104228]
[1768787973160,4.46464943,133.7,133.67,11.82287241]
[1768787975344,14.95380483,133.72,133.68,4.34183013]
[1768787975761,4.46464943,133.71,133.68,4.34183013]
[1768787976072,4.46464943,133.72,133.68,4.34183013]
[1768787976268,4.46464943,133.72,133.68,7.35237726]
[1768787976450,71.84303106,133.74,133.69,4.34183013]
[1768787976650,4.46464943,133.74,133.7,4.34183013]
[1768787977161,4.46464943,133.74,133.7,11.82105611]
[1768787978071,4.21801807,133.74,133.7,11.82105611]
[1768787979760,4.21801807,133.73,133.7,11.82105611]
[1768787987475,7.47724149,133.74,133.71,4.42405826]
[1768787987476,4.21801807,133.74,133.71,4.42405826]
[1768787988553,4.21801807,133.74,133.71,7.47878569]
[1768787989965,4.21801807,133.74,133.71,11.90284395]
[1768787991979,4.21801807,133.74,133.7,7.47927152]
[1768787992359,4.21801807,133.74,133.7,11.90332978]
[1768787993170,18.68906608,133.77,133.74,4.23563191]
[1768787993171,4.32004097,133.77,133.74,4.23563191]
[1768787993378,4.32004097,133.77,133.74,7.24382038]
[1768787994085,4.32004097,133.77,133.74,11.71267441]
[1768787994967,7.57497221,133.78,133.76,7.24382038]
[1768787994968,0.1,133.78,133.76,7.24382038]
[1768787995168,0.1,133.78,133.77,4.23563191]
[1768787996382,1e-08,133.78,133.77,4.23563191]
[1768787996571,4.32004097,133.82,133.78,4.23563191]
[1768787996968,7.32822944,133.82,133.78,4.23563191]
[1768787997571,7.32822944,133.81,133.77,11.71114958]
[1768787997781,4.32004097,133.8,133.77,11.71114958]
[1768788000266,4.32004097,133.82,133.78,4.23563191]
[1768788000464,4.32004097,133.81,133.77,4.23563191]
[1768788000665,4.32004097,133.8,133.77,4.23563191]
[1768788000986,4.32004097,133.79,133.76,4.23563191]
[1768788001499,4.32004097,133.79,133.74,21.70077181]
[1768788001500,7.32822944,133.78,133.74,11.71275616]
[1768788001799,42.53457538,133.82,133.73,11.71318441]
[1768788001800,7.32822944,133.77,133.73,11.71318441]
[1768788002291,4.32004097,133.78,133.75,4.23563191]
[1768788002477,7.32822944,133.77,133.73,4.23563191]
[1768788002676,4.32004097,133.77,133.73,4.23563191]
[1768788003271,4.32004097,133.78,133.75,4.23563191]
[1768788003471,4.32004097,133.78,133.74,11.71273388]
[1768788003672,4.32004097,133.77,133.74,11.71273388]
[1768788004998,4.32004097,133.77,133.74,4.23563191]
[1768788005397,7.32822944,133.77,133.74,4.23563191]
[1768788005895,4.32004097,133.76,133.72,11.71390842]
[1768788006093,3.00818847,133.75,133.71,11.71434056]
[1768788006283,7.32822944,133.74,133.7,11.71467715]
[1768788006477,4.32004097,133.75,133.71,4.23563191]
[1768788007077,4.32004097,133.74,133.71,4.23563191]
[1768788007281,4.32004097,133.73,133.69,4.23563191]
[1768788007893,4.32004097,133.73,133.69,11.71546328]
[1768788008599,4.32004097,133.73,133.7,4.23563191]
[1768788008775,7.32822944,133.73,133.69,11.71546328]
[1768788009085,4.32004097,133.73,133.7,4.23563191]
[1768788009468,7.32822944,133.73,133.7,4.23563191]
[1768788009669,4.32004097,133.73,133.7,4.23563191]
[1768788010070,4.32004097,133.74,133.7,4.23563191]
[1768788010276,4.32004097,133.75,133.71,11.71408036]
[1768788011275,4.32004097,133.74,133.71,7.47844845]
[1768788011672,4.32004097,133.73,133.7,11.71484825]
[1768788011992,4.32004097,133.73,133.71,7.47885191]
[1768788012496,4.32004097,133.74,133.71,7.47885191]
[1768788012796,4.32004097,133.76,133.72,4.23563191]
[1768788013381,4.32004097,133.76,133.72,11.71344748]
[1768788014097,4.32004097,133.74,133.69,18.69947735]
[1768788014283,4.32004097,133.74,133.7,7.47902021]
[1768788014799,4.32004097,133.72,133.68,4.23563191]
[1768788015501,4.32004097,133.72,133.68,11.71597202]
[1768788018397,4.32004097,133.72,133.68,14.72416049]
[1768788018600,4.32004097,133.72,133.69,7.24382038]
[1768788018793,4.32004097,133.74,133.7,4.23563191]
[1768788019806,4.32004097,133.73,133.69,7.24382038]
[1768788020885,4.32004097,133.73,133.7,7.47943156]
[1768788021486,4.32004097,133.73,133.7,11.71506347]
[1768788022008,4.32004097,133.73,133.7,4.23563191]
[1768788023494,4.32004097,133.73,133.7,11.71498589]
[1768788024305,4.32004097,133.73,133.69,4.11891845]
[1768788024630,4.32004097,133.73,133.7,7.47930781]
[1768788025490,4.17082693,133.75,133.7,11.59822626]
[1768788025809,4.17082693,133.76,133.72,4.11891845]
[1768788025986,4.17082693,133.76,133.72,7.12710692]
[1768788026499,4.17082693,133.76,133.7,26.17788671]
[1768788026500,4.17082693,133.74,133.7,7.47930781]
[1768788026705,4.17082693,133.73,133.7,7.47930781]
[1768788027594,4.17082693,133.74,133.7,14.60641473]
[1768788027800,7.47621242,133.76,133.71,7.12710692]
[1768788028008,4.17082693,133.75,133.71,7.12710692]
[1768788028306,11.64597924,133.78,133.74,4.11891845]
[1768788028812,4.17082693,133.78,133.74,7.12710692]
[1768788029018,4.17082693,133.78,133.74,4.11891845]
[1768788029310,4.17082693,133.78,133.74,11.59589423]
[1768788032518,4.17082693,133.78,133.74,14.6040827]
[1768788032897,4.17082693,133.8,133.77,4.11891845]
[1768788033106,4.17082693,133.8,133.76,7.12710692]
[1768788033503,4.17082693,133.8,133.77,7.47551767]
[1768788034416,14.65194159,133.82,133.78,4.11891845]
[1768788034618,4.17082693,133.81,133.78,4.11891845]
[1768788035000,4.17082693,133.82,133.78,7.12710692]
[1768788035200,7.1790154,133.81,133.77,11.59443612]
[1768788035620,4.17082693,133.79,133.76,11.59478338]
[1768788036324,4.17082693,133.78,133.74,4.11891845]
[1768788036635,4.17082693,133.77,133.74,4.11891845]
[1768788036799,4.17082693,133.77,133.73,4.11891845]
[1768788037004,4.17082693,133.77,133.74,7.47712435]
[1768788037417,4.17082693,133.77,133.74,11.5960428]
[1768788038301,4.10700665,133.78,133.74,11.5960428]
[1768788038538,7.11519512,133.78,133.74,11.5960428]
[1768788039215,4.10700665,133.77,133.74,11.5960428]
[1768788039430,3.00818847,133.77,133.72,11.86067042]
[1768788039637,4.10700665,133.76,133.73,7.47772803]
[1768788040428,4.10700665,133.75,133.72,11.86083875]
[1768788040723,4.10700665,133.75,133.7,38.08605376]
[1768788040724,4.10700665,133.75,133.71,11.86134065]
[1768788041227,4.10700665,133.75,133.72,7.47827776]
[1768788041419,4.10700665,133.76,133.72,4.38256452]
[1768788041603,4.10700665,133.75,133.72,4.38256452]
[1768788043029,4.10700665,133.75,133.72,11.86074047]
[1768788045123,4.10700665,133.75,133.71,11.8614367]
[1768788045529,4.05154053,133.75,133.71,11.8614367]
[1768788045912,3.99607602,133.75,133.71,11.8614367]
[1768788047309,3.00758113,133.74,133.69,4.38256452]
[1768788047510,3.00758113,133.72,133.67,4.38256452]
[1768788047732,3.00758113,133.71,133.68,7.4801779]
[1768788047922,3.00758113,133.72,133.68,7.4801779]
[1768788048122,4.10700665,133.71,133.68,7.4801779]
[1768788048332,4.10700665,133.71,133.69,7.47994709]
[1768788048535,4.10700665,133.72,133.7,7.47943156]
[1768788049032,4.10700665,133.72,133.68,4.38256452]
[1768788049217,4.10700665,133.71,133.68,11.86275507]
[1768788049652,4.10700665,133.71,133.68,7.48019055]
[1768788050821,4.10700665,133.69,133.64,7.39014565]
[1768788051034,4.10700665,133.69,133.65,7.48202025]
[1768788051349,4.10700665,133.69,133.65,11.86458477]
[1768788052953,4.02925325,133.69,133.65,11.86458477]
[1768788054428,3.00758113,133.68,133.63,20.81729692]
[1768788054631,3.00758113,133.68,133.64,7.4823923]
[1768788054862,4.05384235,133.68,133.64,11.91968922]
[1768788055656,7.06142348,133.68,133.64,11.91968922]
[1768788056160,4.05384235,133.67,133.63,7.48323046]
[1768788056453,4.05384235,133.67,133.62,7.48368692]
[1768788056454,4.05384235,133.66,133.62,7.48368692]
[1768788056833,4.05384235,133.66,133.62,11.92098384]
[1768788057340,4.05384235,133.66,133.62,14.92856497]
[1768788058157,11.53499431,133.67,133.63,11.92055331]
[1768788058543,25.47758113,133.77,133.64,4.43729692]
[1768788058544,41.85758113,133.77,133.64,4.43729692]
[1768788058735,37.37670712,133.78,133.7,7.44487805]
[1768788058940,16.38,133.79,133.71,4.43729692]
[1768788059152,16.38,133.79,133.72,4.43729692]
[1768788059153,3.00758113,133.78,133.72,4.43729692]
[1768788059356,16.38,133.79,133.71,7.44487805]
[1768788059555,3.00758113,133.77,133.71,4.43729692]
[1768788059857,3.00758113,133.76,133.69,7.44487805]
[1768788060055,7.47663551,133.75,133.7,4.43729692]
[1768788060443,7.47663551,133.75,133.65,26.54639038]
[1768788060444,3.00758113,133.71,133.65,14.6036873]
[1768788060644,4.05384235,133.7,133.67,7.48103005]
[1768788060846,4.05384235,133.7,133.66,4.43729692]
[1768788061044,4.05384235,133.69,133.65,11.91939821]
[1768788061259,4.05384235,133.69,133.65,4.43729692]
[1768788061437,7.06142348,133.69,133.65,4.43729692]
[1768788062040,14.54151737,133.69,133.65,4.43729692]
[1768788062236,4.05384235,133.67,133.63,11.9204584]
[1768788062459,7.06142348,133.67,133.63,11.9204584]
[1768788062646,4.05384235,133.67,133.63,11.9204584]
[1768788062840,7.06142348,133.64,133.6,4.43729692]
[1768788063046,4.05384235,133.64,133.6,4.43729692]
[1768788063347,7.06142348,133.64,133.6,11.92182455]
[1768788063550,4.05384235,133.64,133.6,11.92182455]
[1768788065844,4.05384235,133.65,133.61,4.43729692]
[1768788066149,20.43384235,133.66,133.61,4.43729692]
[1768788066360,20.43384235,133.67,133.63,4.43729692]
[1768788066557,59.90086219,133.69,133.64,7.44487805]
[1768788066761,59.90086219,133.69,133.65,4.43729692]
[1768788067164,63.95470454,133.69,133.65,4.43729692]
[1768788067349,71.43485779,133.69,133.65,4.43729692]
[1768788067544,4.05384235,133.68,133.64,4.43729692]
[1768788067761,4.05384235,133.67,133.63,7.48301551]
[1768788067944,4.05384235,133.65,133.62,7.48378986]
[1768788068149,20.43384235,133.66,133.62,11.92108678]
[1768788068649,16.38,133.66,133.62,11.92108678]
[1768788068864,16.38,133.66,133.61,11.92158679]
[1768788068865,4.05384235,133.65,133.61,11.92158679]
[1768788069263,4.05384235,133.65,133.62,4.43729692]
[1768788069568,4.05384235,133.65,133.61,7.48428987]
[1768788069740,4.05384235,133.64,133.6,11.92214107]
[1768788070744,4.05384235,133.63,133.59,11.9226782]
[1768788071059,3.99384236,133.63,133.59,11.9226782]
[1768788071562,3.99384236,133.63,133.59,7.48538128]
[1768788072160,3.99384236,133.63,133.59,11.9226782]
[1768788072363,7.48315418,133.64,133.6,4.43729692]
[1768788072845,4.05384235,133.64,133.6,4.43729692]
[1768788073767,4.05384235,133.63,133.59,11.9226782]
[1768788074271,4.05384235,133.63,133.59,7.48538128]
[1768788074653,4.05384235,133.63,133.59,11.9226782]
[1768788074857,4.05384235,133.63,133.58,7.48599979]
[1768788074858,4.05384235,133.62,133.58,7.48599979]
[1768788075053,20.39657692,133.62,133.58,7.48599979]
[1768788075254,16.38,133.62,133.58,7.48599979]
[1768788075460,16.38,133.62,133.57,12.12385526]
[1768788075772,16.38,133.62,133.58,7.48606564]
[1768788076275,38.09735511,133.62,133.57,0.2]
[1768788076573,16.38,133.62,133.58,4.43729692]
[1768788077078,20.43384235,133.62,133.58,4.43729692]
[1768788077868,16.38,133.62,133.59,7.48559023]
[1768788078078,16.38,133.62,133.59,11.92288715]
[1768788078367,16.38,133.62,133.59,4.43729692]
[1768788078572,20.43384235,133.62,133.59,4.43729692]
[1768788078776,20.43384235,133.62,133.58,11.92322445]
[1768788081279,4.05384235,133.61,133.58,11.92322445]
[1768788081476,20.43384235,133.62,133.58,11.92322445]
[1768788081782,16.38,133.62,133.59,4.43729692]
[1768788082184,16.3172565,133.62,133.59,4.43729692]
[1768788082384,4.05384235,133.66,133.61,4.45763415]
[1768788082677,4.44491072,133.65,133.61,4.45763415]
[1768788084176,4.44491072,133.63,133.57,4.65763415]
[1768788084371,4.44491072,133.59,133.57,0.2]
[1768788084709,4.44491072,133.6,133.57,0.2]
[1768788085264,6.91489492,133.61,133.57,4.65763415]
[1768788085480,11.35980564,133.61,133.57,4.65763415]
[1768788085875,4.44491072,133.6,133.57,0.2]
[1768788086493,11.92978237,133.61,133.57,4.65763415]
[1768788087664,11.92978237,133.61,133.56,7.68725198]
[1768788087988,4.44491072,133.56,133.53,0.2]
[1768788088167,20.84491072,133.56,133.53,7.68857628]
[1768788088370,20.84491072,133.56,133.53,0.2]
[1768788088781,28.33227724,133.56,133.53,0.2]
[1768788088982,4.44491072,133.55,133.53,0.2]
[1768788089179,4.44491072,133.6,133.54,6.91489492]
[1768788089495,4.44491072,133.6,133.56,6.91489492]
[1768788090209,11.93013029,133.6,133.55,11.94538595]
[1768788090419,4.44491072,133.59,133.55,4.45763415]
[1768788091575,4.44491072,133.57,133.53,0.2]
[1768788091899,11.35980564,133.57,133.53,0.2]
[1768788092294,4.44491072,133.55,133.5,0.1]
[1768788092604,4.44491072,133.54,133.5,0.1]
[1768788093301,4.44491072,133.54,133.5,12.04808905]
[1768788093503,53.96525636,133.56,133.5,12.04808905]
[1768788093698,28.33218235,133.56,133.52,4.45763415]
[1768788094004,16.4,133.56,133.53,4.45763415]
[1768788094304,20.84491072,133.59,133.54,4.45763415]
[1768788094901,4.44491072,133.58,133.54,4.45763415]
[1768788095206,11.93010875,133.6,133.55,4.45763415]
[1768788095379,11.93010875,133.6,133.55,11.37252907]
[1768788095578,11.93010875,133.6,133.55,4.45763415]
[1768788096900,18.84500367,133.6,133.55,4.45763415]
[1768788097087,11.35980564,133.59,133.53,18.86129147]
[1768788097399,4.44491072,133.58,133.54,4.45763415]
[1768788097801,11.31535653,133.55,133.48,4.45763415]
[1768788097988,16.4,133.54,133.5,4.43501861]
[1768788098801,6.91489492,133.53,133.5,4.43501861]
[1768788099196,23.88845232,133.54,133.5,4.43501861]
[1768788099402,6.91489492,133.53,133.5,4.43501861]
[1768788099912,6.91489492,133.53,133.5,11.92562944]
[1768788101309,6.91489492,133.53,133.5,4.43501861]
[1768788101505,6.91489492,133.53,133.49,4.43501861]
[1768788101506,6.91489492,133.51,133.49,4.43501861]
[1768788102706,16.4,133.54,133.5,4.43501861]
[1768788102889,6.91489492,133.53,133.5,4.43501861]
[1768788103405,23.31489492,133.54,133.5,4.43501861]
[1768788103615,6.91489492,133.53,133.5,4.43501861]
[1768788103790,16.4,133.54,133.5,4.43501861]
[1768788103986,23.31489492,133.54,133.5,4.43501861]
[1768788105003,23.31489492,133.54,133.51,7.49007564]
[1768788105004,23.32798833,133.54,133.51,7.49007564]
[1768788105639,7.48708036,133.57,133.52,4.43501861]
[1768788105913,6.92798833,133.54,133.47,4.63501861]
[1768788106135,6.92798833,133.5,133.47,4.63501861]
[1768788106299,6.92798833,133.5,133.48,4.43501861]
[1768788109614,30.81706194,133.53,133.49,4.43501861]
[1768788109913,14.41706194,133.53,133.49,4.43501861]
[1768788110213,7.48804794,133.55,133.49,4.43501861]
[1768788110417,6.92798833,133.54,133.49,4.43501861]
[1768788111719,14.41656778,133.54,133.5,4.43501861]
[1768788111911,11.71119071,133.54,133.5,4.43501861]
[1768788112113,6.92798833,133.53,133.5,4.43501861]
[1768788113999,14.41709094,133.53,133.5,4.43501861]
[1768788114404,6.92798833,133.53,133.5,4.43501861]
[1768788114609,14.41702842,133.53,133.5,4.43501861]
[1768788114898,18.74012009,133.53,133.48,4.36281658]
[1768788115122,11.25108,133.51,133.47,0.2]
[1768788115622,11.25108,133.51,133.47,4.56281658]
[1768788116422,11.25108,133.51,133.47,12.05509224]
[1768788117326,6.92798833,133.51,133.47,12.05509224]
[1768788117727,18.74116712,133.51,133.47,12.05509224]
[1768788118724,14.41807545,133.51,133.47,12.05509224]
[1768788119019,18.74116712,133.51,133.47,12.05509224]
[1768788119416,11.25108,133.51,133.47,12.05509224]
[1768788120123,6.92798833,133.51,133.47,12.05509224]
[1768788121103,6.92798833,133.51,133.48,4.36281658]
[1768788121325,30.81709752,133.53,133.49,4.36281658]
[1768788121616,30.81709752,133.53,133.48,7.49139588]
[1768788121818,7.48910919,133.53,133.49,4.36281658]
[1768788122020,6.92798833,133.52,133.49,4.36281658]
[1768788122264,4.32309167,133.56,133.49,4.36281658]
[1768788122434,20.72309167,133.58,133.49,4.36281658]
[1768788122606,27.65108,133.58,133.49,4.36281658]
[1768788123427,4.32309167,133.57,133.51,4.36281658]
[1768788123637,6.92798833,133.54,133.51,4.36281658]
[1768788127129,6.92798833,133.52,133.49,11.85368842]
[1768788127336,6.92798833,133.52,133.5,11.8533714]
[1768788127530,6.92798833,133.54,133.51,4.36281658]
[1768788127736,6.92798833,133.56,133.52,4.36281658]
[1768788128043,6.92798833,133.54,133.5,7.49051999]
[1768788128340,6.92798833,133.54,133.51,7.48988305]
[1768788129649,6.92798833,133.56,133.49,18.72726738]
[1768788129817,6.92798833,133.56,133.5,4.36281658]
[1768788130334,4.32309167,133.57,133.5,4.36281658]
[1768788130527,6.92798833,133.56,133.5,4.36281658]
[1768788130726,14.41540483,133.56,133.5,4.36281658]
[1768788131633,7.4874165,133.56,133.52,4.36281658]
[1768788131935,6.92798833,133.57,133.52,4.36281658]
[1768788132930,6.92798833,133.59,133.52,4.36281658]
[1768788133332,27.65108,133.6,133.52,4.36281658]
[1768788133642,35.13633845,133.6,133.52,4.36281658]
[1768788133935,4.32309167,133.57,133.53,7.48895379]
[1768788134126,6.92798833,133.56,133.53,7.48895379]
[1768788134529,6.92798833,133.56,133.53,11.85177037]
[1768788135036,6.92798833,133.56,133.51,18.72518912]
[1768788135037,6.92798833,133.56,133.54,4.36281658]
[1768788136138,11.25108,133.56,133.51,7.49007564]
[1768788136330,11.25108,133.56,133.52,4.36281658]
[1768788137040,11.25108,133.56,133.52,11.85224974]
[1768788137741,18.73856883,133.56,133.52,4.36281658]
[1768788138522,14.41547716,133.56,133.52,4.36281658]
[1768788139346,18.73856883,133.56,133.52,4.36281658]
[1768788139834,4.32309167,133.55,133.5,11.85323235]
[1768788140036,6.92798833,133.54,133.5,11.85323235]
[1768788140228,6.92798833,133.54,133.51,4.36281658]
[1768788140946,11.25108,133.54,133.5,11.85323235]
[1768788141327,18.73949314,133.54,133.5,11.85323235]
[1768788141534,18.73949314,133.54,133.5,4.36281658]
[1768788142652,18.73949314,133.54,133.48,28.26338189]
[1768788142653,4.3377167,133.53,133.48,28.26338189]
[1768788142953,11.26570503,133.52,133.48,4.37185193]
[1768788143254,18.75560281,133.52,133.48,4.37185193]
[1768788143639,18.75560281,133.52,133.47,7.69178637]
[1768788143640,4.3377167,133.51,133.47,0.2]
[1768788143844,6.92798833,133.5,133.47,0.2]
[1768788144139,6.92798833,133.5,133.47,4.57185193]
[1768788144950,6.92798833,133.5,133.47,12.06411926]
[1768788145124,4.3377167,133.51,133.47,12.06411926]
[1768788145325,11.26570503,133.51,133.47,12.06411926]
[1768788147034,18.75594962,133.51,133.47,4.57185193]
[1768788149154,18.75594962,133.51,133.47,0.2]
[1768788149155,0.23158699,133.5,133.47,0.2]
[1768788149341,7.72232602,133.5,133.47,0.2]
[1768788150430,6.92798833,133.49,133.47,0.2]
[1768788151442,18.75530366,133.49,133.47,1e-08]
[1768788152452,14.41935531,133.49,133.47,1e-08]
[1768788152631,7.49136698,133.49,133.47,1e-08]
[1768788152947,18.75471742,133.5,133.47,1e-08]
[1768788154748,4.33594835,133.49,133.47,1e-08]
[1768788156455,11.827479,133.49,133.47,1e-08]
[1768788156656,6.92798833,133.48,133.47,1e-08]
[1768788158455,7.49080382,133.5,133.47,4.16418702]
[1768788158755,14.41879215,133.5,133.47,4.16418702]
[1768788159144,18.56064114,133.5,133.47,4.16418702]
[1768788159833,6.92798833,133.5,133.48,4.16418701]
[1768788162637,6.92798833,133.52,133.49,4.16418701]
[1768788163156,18.55901141,133.53,133.49,4.16418701]
[1768788163756,18.55845489,133.54,133.5,4.16418701]
[1768788164761,6.92798833,133.54,133.5,4.16418701]
[1768788165645,11.06983732,133.54,133.5,11.65461998]
[1768788165861,18.5582602,133.54,133.5,11.65461998]
[1768788166348,11.06983732,133.54,133.5,11.65461998]
[1768788166963,11.06863769,133.55,133.51,4.16418701]
[1768788167339,18.55647498,133.55,133.51,4.16418701]
[1768788168158,6.9267887,133.55,133.52,4.16418701]
[1768788168363,4.14184899,133.56,133.52,4.16418701]
[1768788168765,6.9267887,133.57,133.52,4.16418701]
[1768788168974,11.62801146,133.58,133.52,4.16418701]
[1768788169163,4.14184899,133.58,133.52,4.16418701]
[1768788169345,7.15708028,133.57,133.52,4.16418701]
[1768788170258,7.15708028,133.57,133.53,7.48895379]
[1768788170464,7.15708028,133.58,133.54,4.16418701]
[1768788171469,7.15708028,133.58,133.54,11.65238515]
[1768788173465,31.24761782,133.61,133.55,4.18808466]